bitfinex-derivatives/quotes_ETHF0:USTF0_20250501
["timestamp","ask_amount","ask_price","bid_price","bid_amount"]
[1746118943540,1.0746,1860.5,1860.4,4.68962]
[1746118943939,2.7399,1860.5,1860.4,4.68962]
[1746118944135,2.7399,1860.5,1860.4,6.40012]
[1746118944347,1.0746,1860.5,1860.4,6.40012]
[1746118944534,4.28233,1860.7,1860.6,1.07454]
[1746118945742,5.94763,1860.7,1860.6,1.07454]
[1746118948250,2.73983,1860.7,1860.6,1.07454]
[1746118948945,2.73983,1860.7,1860.4,10.69874]
[1746118948946,3.2078,1860.9,1860.8,1.07443]
[1746118949150,1.93599,1861.0,1860.9,1.07437]
[1746118949642,0.8616,1861.0,1860.9,1.07437]
[1746118949847,2.4152,1861.1,1861.0,1.07431]
[1746118950049,3.48945,1861.1,1861.0,1.07431]
[1746118950438,8.71325207,1861.3,1860.9,1.6315]
[1746118950641,8.71325207,1861.3,1861.2,1.07419]
[1746118950842,8.71325207,1861.3,1860.7,9.9765]
[1746118950843,1.07443,1860.8,1860.7,4.28227]
[1746118951042,1.07454,1860.7,1860.6,1.07451]
[1746118951245,4.37124,1860.7,1860.6,1.07451]
[1746118951639,1.07454,1860.6,1860.5,2.70605]
[1746118951843,1.0746,1860.5,1860.4,4.68962]
[1746118952845,4.2824,1860.5,1860.4,4.68962]
[1746118953041,4.2824,1860.5,1860.4,6.40112]
[1746118954754,1.0746,1860.5,1860.4,6.40112]
[1746118954949,2.68377,1860.6,1860.5,1.0746]
[1746118955156,1.07457,1860.6,1860.5,2.7861]
[1746118955551,2.78887,1860.6,1860.5,2.7861]
[1746118955750,3.2078,1860.9,1860.5,6.7115]
[1746118955952,1.07447,1860.8,1860.7,1.07444]
[1746118956152,1.07447,1860.8,1860.7,2.71754]
[1746118956553,1.86857,1860.8,1860.7,2.71754]
[1746118957552,0.7941,1860.8,1860.7,2.71754]
[1746118957750,1.0744,1860.9,1860.8,1.07436]
[1746118957951,1.0744,1860.9,1860.8,4.68936]
[1746118958257,2.78865,1861.0,1860.9,1.07437]
[1746118958458,5.12401,1861.1,1861.0,1.07431]
[1746118958660,3.2078,1861.1,1861.0,1.07431]
[1746118958865,3.2078,1861.1,1861.0,2.68991]
[1746118959162,4.28205,1861.1,1861.0,2.68991]
[1746118959359,4.65282207,1861.2,1861.1,1.07425]
[1746118960153,4.65282207,1861.2,1861.0,1.6156]
[1746118960360,1.07425,1861.1,1861.0,2.68986]
[1746118961757,1.07437,1860.9,1860.8,7.10508139]
[1746118961957,4.28217,1860.9,1860.8,7.10508139]
[1746118962558,6.75047,1860.9,1860.8,7.10508139]
[1746118962756,1.07443,1860.8,1860.7,7.10508139]
[1746118962959,2.71383,1860.8,1860.7,7.10508139]
[1746118964261,2.71383,1860.8,1860.7,8.17956139]
[1746118964456,2.71383,1860.8,1860.7,7.10508139]
[1746118964659,2.71383,1860.8,1860.7,3.58738]
[1746118965864,2.71383,1860.8,1860.7,2.78408]
[1746118967366,2.71383,1860.8,1860.7,1.7096]
[1746118968068,2.71383,1860.8,1860.7,2.78408]
[1746118968266,2.71383,1860.8,1860.7,1.7096]
[1746118968455,2.71383,1860.8,1860.7,2.78408]
[1746118968865,2.71383,1860.8,1860.7,1.7096]
[1746118969167,2.71383,1860.8,1860.7,2.78408]
[1746118969563,2.71383,1860.8,1860.7,1.7096]
[1746118974569,1.07448,1860.7,1860.6,1.07451]
[1746118974765,1.07454,1860.6,1860.5,1.6155]
[1746118975163,2.68254,1860.6,1860.5,1.6155]
[1746118975365,2.68254,1860.6,1860.5,2.6901]
[1746118975664,2.68254,1860.6,1860.5,1.6155]
[1746118975861,2.68254,1860.6,1860.5,2.6901]
[1746118977369,1.07454,1860.6,1860.5,2.6901]
[1746118977563,1.07454,1860.6,1860.5,3.5122]
[1746118979970,1.07435,1861.0,1860.9,1.07431]
[1746118980172,1.07431,1861.0,1860.9,4.76232]
[1746118980674,4.28209,1861.1,1861.0,1.07431]
[1746118980972,2.68508,1861.5,1861.2,1.07412]
[1746118981164,1.07416,1861.3,1861.2,1.07412]
[1746118982265,3.5726,1861.4,1861.3,1.07414]
[1746118982461,1.90666,1861.5,1861.4,1.07408]
[1746118982963,3.63996,1861.5,1861.4,1.07408]
[1746118983373,1.07408,1861.4,1861.3,1.88439]
[1746118983566,2.80738,1861.4,1861.3,1.88439]
[1746118983765,1.07407,1861.5,1861.4,1.07404]
[1746118984368,1.074,1861.6,1861.5,1.07402]
[1746118984662,1.86924,1861.7,1861.6,1.07396]
[1746118984872,6.84349,1861.8,1861.7,1.07391]
[1746118985574,5.7696,1861.8,1861.4,6.7311]
[1746118985774,1.07401,1861.6,1861.5,1.07399]
[1746118986273,1.07401,1861.6,1861.5,4.76199]
[1746118987075,1.07394,1861.7,1861.6,1.07391]
[1746118987276,6.84351,1861.8,1861.7,1.07391]
[1746118989676,1.07391,1861.7,1861.6,1.89561]
[1746118991480,6.01499,1861.8,1861.7,1.07391]
[1746118991782,6.01499,1861.8,1861.6,0.8217]
[1746118991783,1.07391,1861.7,1861.6,1.89565]
[1746118993585,4.28171,1861.7,1861.6,1.89565]
[1746118995983,2.80719,1861.8,1861.7,1.07391]
[1746118996188,4.28163,1861.9,1861.8,1.07385]
[1746118996595,1.07391,1861.8,1861.7,1.07386]
[1746118999999,5.89904,1861.9,1861.8,1.07385]
[1746119000203,3.2078,1861.9,1861.8,1.07385]
[1746119000394,0.7953,1862.0,1861.9,1.07379]
[1746119000594,0.7953,1862.0,1861.9,3.53599]
[1746119000795,3.2078,1862.1,1862.0,1.07373]
[1746119001099,4.28143,1862.3,1862.2,1.07362]
[1746119001296,1.07368,1862.2,1862.1,1.07363]
[1746119001495,2.76448,1862.2,1862.1,1.07363]
[1746119005698,1.07368,1862.2,1862.1,1.07363]
[1746119005898,2.68362,1862.6,1862.1,1.07363]
[1746119005899,1.07325,1862.9,1862.8,1.07325]
[1746119006104,4.281,1863.0,1862.9,1.07321]
[1746119006306,4.281,1863.0,1862.6,6.30545]
[1746119006307,1.07324,1862.9,1862.8,1.07325]
[1746119006506,2.77864,1862.9,1862.8,1.07325]
[1746119006894,1.07327,1862.8,1862.7,2.63812]
[1746119007098,1.07327,1862.8,1862.7,1.5648]
[1746119007298,1.90627,1862.8,1862.7,1.5648]
[1746119007498,0.833,1862.8,1862.7,2.63813]
[1746119007693,1.90627,1862.8,1862.7,2.63813]
[1746119007898,3.64247,1862.8,1862.7,2.63813]
[1746119009110,3.64247,1862.8,1862.6,4.4111]
[1746119009111,1.07333,1862.7,1862.6,5.48445]
[1746119009303,5.777,1862.8,1862.5,2.64863]
[1746119009503,1.07339,1862.6,1862.5,6.27063]
[1746119010406,3.63547,1862.7,1862.6,1.07339]
[1746119011307,3.63547,1862.7,1862.6,2.74589]
[1746119011506,3.63547,1862.7,1862.6,3.55529]
[1746119011807,4.28112,1862.8,1862.7,1.07333]
[1746119012107,4.28112,1862.8,1862.7,1.6725]
[1746119012508,1.07333,1862.7,1862.6,0.8094]
[1746119012708,1.07339,1862.6,1862.5,4.69543]
[1746119012904,1.07338,1862.7,1862.6,1.07336]
[1746119013208,1.07338,1862.7,1862.6,1.6725]
[1746119013408,4.38868,1862.7,1862.6,1.6725]
[1746119013608,1.07338,1862.7,1862.6,2.74589]
[1746119013809,1.07338,1862.7,1862.6,1.6725]
[1746119014512,1.07338,1862.7,1862.6,2.74589]
[1746119014712,3.2078,1862.8,1862.6,1.6725]
[1746119015009,1.0733,1862.8,1862.7,1.6438]
[1746119015205,1.0733,1862.8,1862.7,2.4459]
[1746119015609,1.0733,1862.8,1862.7,3.2763]
[1746119016116,1.0733,1862.8,1862.7,2.4459]
[1746119016305,2.6883,1862.8,1862.7,2.4459]
[1746119020715,1.07344,1862.5,1862.4,4.69446]
[1746119020916,1.07344,1862.6,1862.5,1.07339]
[1746119021413,1.07344,1862.6,1862.5,1.89339]
[1746119021808,1.07337,1862.7,1862.6,1.07331]
[1746119022415,0.00617921,1862.8,1862.7,1.07327]
[1746119022604,1.07944921,1862.8,1862.7,4.69427]
[1746119024605,2.66544921,1862.8,1862.7,4.69427]
[1746119025109,2.66544921,1862.8,1862.7,1.07327]
[1746119025317,2.66544921,1862.8,1862.7,4.69427]
[1746119027920,1.59217921,1862.8,1862.7,4.69427]
[1746119028220,2.66544921,1862.8,1862.7,4.69427]
[1746119029612,1.59217921,1862.8,1862.7,4.69427]
[1746119029816,2.66544921,1862.8,1862.7,4.69427]
[1746119033819,1.59217921,1862.8,1862.7,4.69427]
[1746119034024,2.66544921,1862.8,1862.7,4.69427]
[1746119035325,1.07944921,1862.8,1862.7,4.69427]
[1746119036527,1.07944921,1862.8,1862.7,3.621]
[1746119036725,1.07944921,1862.8,1862.7,4.69433]
[1746119036921,3.58494921,1862.8,1862.7,4.69433]
[1746119037125,1.07944921,1862.8,1862.7,4.69433]
[1746119039525,0.00617921,1862.8,1862.7,4.69433]
[1746119039727,0.00617921,1862.8,1862.7,7.90213]
[1746119041630,1.07944921,1862.8,1862.7,4.69433]
[1746119041835,3.60024921,1862.8,1862.7,4.69433]
[1746119043026,1.07333,1862.7,1862.6,1.7238]
[1746119043233,1.0735,1862.4,1862.3,1.07356]
[1746119043728,1.0735,1862.4,1862.3,2.78386]
[1746119044335,3.62457,1862.5,1862.4,1.0735]
[1746119044630,3.62457,1862.5,1862.4,2.7993]
[1746119046733,1.07347,1862.5,1862.4,2.7993]
[1746119047030,1.07342,1862.6,1862.5,1.07339]
[1746119047233,1.07342,1862.6,1862.5,3.54939]
[1746119049741,1.07342,1862.6,1862.5,2.476]
[1746119050228,1.0735,1862.4,1862.3,1.07352]
[1746119050430,1.0735,1862.4,1862.3,1.5731]
[1746119050834,1.0735,1862.4,1862.3,2.64666]
[1746119051134,1.0735,1862.4,1862.3,1.5731]
[1746119051436,1.0735,1862.4,1862.3,2.64666]
[1746119052138,1.0735,1862.4,1862.3,1.5731]
[1746119053638,1.8598,1862.4,1862.3,2.64666]
[1746119054038,1.8598,1862.4,1862.3,1.5731]
[1746119054442,3.5835,1862.4,1862.3,1.5731]
[1746119054738,1.0735,1862.4,1862.3,1.5731]
[1746119055036,6.1578,1862.7,1862.4,1.07344]
[1746119055236,1.07349,1862.5,1862.4,1.07344]
[1746119057644,1.07345,1862.6,1862.5,1.0734]
[1746119057843,1.86433,1862.7,1862.6,1.07339]
[1746119058350,1.07333,1862.7,1862.6,1.07339]
[1746119061251,1.07949921,1862.8,1862.7,1.07333]
[1746119065048,0.00617921,1862.8,1862.7,1.07333]
[1746119065847,0.00617921,1862.8,1862.7,4.28113]
[1746119066954,1.07944921,1862.8,1862.7,4.28113]
[1746119067451,0.00617921,1862.8,1862.7,4.28113]
[1746119068351,3.2078,1863.3,1863.0,1.07316]
[1746119068651,1.89405,1863.2,1863.1,1.0731]
[1746119068951,4.46725,1863.2,1863.1,1.0731]
[1746119069151,1.07316,1863.1,1863.0,1.07311]
[1746119069354,1.07316,1863.0,1862.9,4.63817]
[1746119069746,2.80946,1863.0,1862.9,4.63817]
[1746119070146,1.07316,1863.0,1862.9,4.63817]
[1746119070847,2.80946,1863.0,1862.9,4.63817]
[1746119071048,1.7363,1863.0,1862.9,4.63817]
[1746119071255,1.91002,1863.1,1863.0,1.07316]
[1746119071452,3.64632,1863.1,1863.0,2.77946]
[1746119073556,3.64632,1863.1,1863.0,1.7063]
[1746119073756,3.64632,1863.1,1863.0,2.77946]
[1746119075259,1.07316,1863.0,1862.9,5.4521]
[1746119075451,5.89746,1863.0,1862.9,3.565]
[1746119075657,1.07321,1862.9,1862.8,2.66115]
[1746119075954,4.8243,1863.0,1862.9,1.07321]
[1746119075955,5.8975,1863.0,1862.9,1.07321]
[1746119076357,4.281,1863.0,1862.9,1.07321]
[1746119076654,4.281,1863.0,1862.9,1.89831]
[1746119077950,5.8908,1863.0,1862.9,1.89831]
[1746119080262,2.683,1863.0,1862.9,1.89831]
[1746119088269,2.683,1863.0,1862.9,0.8251]
[1746119088669,2.683,1863.0,1862.9,2.3895]
[1746119089368,2.683,1863.0,1862.9,3.46271]
[1746119090068,1.0732,1863.0,1862.9,3.46271]
[1746119091969,4.281,1863.0,1862.9,1.5644]
[1746119092162,1.07333,1862.7,1862.6,1.6969]
[1746119092365,1.07333,1862.7,1862.6,2.77029]
[1746119092668,1.07333,1862.7,1862.6,3.56759]
[1746119099069,1.89221,1862.8,1862.7,1.07333]
[1746119099281,1.07326,1862.9,1862.8,1.07321]
[1746119099469,1.07326,1862.9,1862.8,2.78321]
[1746119101474,1.07326,1862.9,1862.8,1.71]
[1746119101675,2.64636,1862.9,1862.8,2.78327]
[1746119102483,1.07326,1862.9,1862.8,2.78327]
[1746119103279,3.2078,1863.0,1862.9,1.07321]
[1746119103280,4.281,1863.0,1862.9,1.07321]
[1746119103486,1.07316,1863.1,1863.0,1.07313]
[1746119103681,1.07316,1863.0,1862.9,4.34427]
[1746119103882,1.07316,1863.0,1862.9,2.70337]
[1746119104886,1.07316,1863.1,1863.0,1.07311]
[1746119105185,1.07315,1863.1,1863.0,1.07311]
[1746119108092,1.07304,1863.2,1863.1,1.0731]
[1746119108483,1.92123,1863.3,1863.2,1.07304]
[1746119109187,1.07313,1863.2,1863.1,1.07306]
[1746119109385,1.07313,1863.2,1862.9,4.31324]
[1746119109584,1.07316,1863.0,1862.9,2.70338]
[1746119110489,1.07315,1863.1,1863.0,1.0731]
[1746119110688,1.07316,1863.0,1862.9,2.70337]
[1746119113994,1.07321,1862.9,1862.8,4.62425]
[1746119114182,1.07321,1862.9,1862.8,4.62427]
[1746119114387,1.07333,1862.7,1862.6,5.932]
[1746119114592,1.07339,1862.6,1862.5,3.551]
[1746119114791,3.54169,1862.6,1862.5,3.551]
[1746119115694,1.0735,1862.4,1862.3,2.72492]
[1746119117599,1.9323,1862.4,1862.3,1.92012]
[1746119120290,1.9323,1862.4,1862.3,3.59102]
[1746119123903,1.9323,1862.4,1862.3,2.74442]
[1746119129499,1.07373,1862.0,1861.9,10.37165105]
[1746119129700,1.07373,1862.0,1861.9,5.12085105]
[1746119130098,1.07373,1862.0,1861.9,6.19464105]
[1746119130301,1.07369,1862.1,1862.0,1.07373]
[1746119130505,3.5283,1862.3,1862.2,1.07362]
[1746119130704,1.0736,1862.3,1862.2,1.07362]
[1746119131407,1.0736,1862.3,1862.2,2.75482]
[1746119133007,1.0736,1862.3,1862.2,1.6812]
[1746119133209,1.0736,1862.3,1862.2,2.75482]
[1746119134506,2.756,1862.3,1862.2,2.75482]
[1746119134706,2.756,1862.3,1862.2,1.6812]
[1746119135005,1.07362,1862.2,1862.1,1.07367]
[1746119135308,3.58922,1862.2,1862.1,1.07367]
[1746119135907,1.07362,1862.2,1862.1,1.07367]
[1746119136102,1.0736,1862.3,1862.2,1.07356]
[1746119136810,1.0736,1862.3,1862.2,2.66946]
[1746119137405,1.0736,1862.3,1862.2,1.5959]
[1746119137606,3.6038,1862.3,1862.2,2.66952]
[1746119137907,3.6038,1862.3,1862.2,1.5959]
[1746119139013,1.07362,1862.2,1862.1,3.55]
[1746119139213,2.67542,1862.2,1862.1,3.55]
[1746119139411,1.07368,1862.1,1862.0,8.67853]
[1746119139711,2.67548,1862.1,1862.0,8.67853]
[1746119140104,2.67548,1862.1,1862.0,2.74653]
[1746119142819,2.67548,1862.1,1862.0,1.6728]
[1746119143115,2.67548,1862.1,1862.0,2.74653]
[1746119143716,2.67548,1862.1,1862.0,1.6728]
[1746119143921,2.67548,1862.1,1862.0,2.74653]
[1746119144713,1.07373,1862.0,1861.9,3.43965105]
[1746119144916,7.65483,1862.0,1861.9,3.43347184]
[1746119145216,12.65483,1862.0,1861.9,3.43347184]
[1746119146318,7.65483,1862.0,1861.9,3.43347184]
[1746119148616,5.07543,1862.0,1861.9,5.09597184]
[1746119149817,1.86763,1862.0,1861.9,6.16976184]
[1746119150316,1.86763,1862.0,1861.9,5.09597184]
[1746119150510,1.86763,1862.0,1861.9,6.16976184]
[1746119151020,1.86763,1862.0,1861.9,5.09597184]
[1746119153523,1.86763,1862.0,1861.9,6.16976184]
[1746119154218,1.07373,1862.0,1861.9,6.16976184]
[1746119154922,1.07373,1862.0,1861.9,5.09597184]
[1746119158718,1.07373,1862.0,1861.9,6.16976184]
[1746119159726,1.07373,1862.0,1861.9,5.09597184]
[1746119160127,1.07373,1862.0,1861.9,6.16976184]
[1746119160730,4.28153,1862.0,1861.9,3.43347184]
[1746119162126,1.07373,1862.0,1861.9,6.07826184]
[1746119162326,1.07373,1862.0,1861.9,5.00447184]
[1746119162526,4.28153,1862.0,1861.9,5.00447184]
[1746119163119,4.28153,1862.0,1861.9,3.43347184]
[1746119168631,5.88523,1862.0,1861.9,3.43347184]
[1746119170425,6.72053,1862.0,1861.9,5.11757184]
[1746119171326,1.07373,1862.0,1861.9,6.19136184]
[1746119172630,5.13041,1862.3,1862.0,1.0737]
[1746119172631,1.07372,1862.1,1862.0,1.0737]
[1746119172830,1.07372,1862.1,1862.0,3.5048]
[1746119173331,1.07372,1862.1,1862.0,2.4311]
[1746119174328,1.07372,1862.1,1862.0,3.50483]
[1746119174834,1.07367,1862.2,1862.1,1.07364]
[1746119175027,1.07367,1862.2,1862.1,3.62054]
[1746119176032,1.07367,1862.2,1862.1,2.5469]
[1746119176231,1.07367,1862.2,1862.1,3.62058]
[1746119177332,1.07367,1862.2,1862.1,2.5469]
[1746119180136,1.07367,1862.2,1862.1,1.7188]
[1746119180336,5.6527,1862.2,1861.9,3.43347184]
[1746119180538,4.28153,1862.0,1861.9,3.43347184]
[1746119180937,4.28153,1862.0,1861.9,5.03287184]
[1746119182742,5.10043,1862.0,1861.9,5.03287184]
[1746119183443,5.10043,1862.0,1861.9,3.43347184]
[1746119185541,5.10043,1862.0,1861.9,5.11757184]
[1746119186241,4.28153,1862.0,1861.9,6.98886184]
[1746119186442,4.28153,1862.0,1861.9,5.91507184]
[1746119187237,4.28153,1862.0,1861.9,6.98886184]
[1746119187540,1.07373,1862.0,1861.9,6.98886184]
[1746119187742,1.07373,1862.0,1861.9,5.91507184]
[1746119189547,1.07373,1862.0,1861.9,6.98886184]
[1746119190548,1.07373,1862.0,1861.9,5.91507184]
[1746119191744,1.07373,1862.0,1861.9,5.11757184]
[1746119191946,3.55423,1862.0,1861.9,5.11757184]
[1746119192337,3.55423,1862.0,1861.9,3.43347184]
[1746119192338,6.76203,1862.0,1861.9,3.43347184]
[1746119192840,6.76203,1862.0,1861.9,2.29938184]
[1746119195044,11.76203,1862.0,1861.9,1.19026184]
[1746119195545,6.76203,1862.0,1861.9,1.19026184]
[1746119196848,1.07373,1862.0,1861.9,1.19026184]
[1746119197147,1.07373,1862.0,1861.9,3.87605184]
[1746119197540,1.07372,1862.1,1861.9,2.80226184]
[1746119197741,1.07372,1862.1,1862.0,2.4213]
[1746119198955,1.07372,1862.1,1862.0,1.612]
[1746119199147,2.78892,1862.1,1862.0,1.612]
[1746119200141,2.78892,1862.1,1861.9,1.19026184]
[1746119200142,1.07373,1862.0,1861.9,1.19026184]
[1746119200347,6.79883,1862.0,1861.9,1.19026184]
[1746119203151,4.38083,1862.0,1861.9,1.19026184]
[1746119203448,7.58863,1862.0,1861.9,1.19026184]
[1746119205850,7.58863,1862.0,1861.9,1.84e-06]
[1746119207046,11.13363,1862.0,1861.9,1.84e-06]
[1746119209153,7.58863,1862.0,1861.9,1.84e-06]
[1746119209353,11.13463,1862.0,1861.9,1.84e-06]
[1746119217058,11.13463,1862.0,1861.9,0.82980184]
[1746119217453,11.13463,1862.0,1861.9,1.84e-06]
[1746119217654,1.07396,1861.6,1861.5,2.4403]
[1746119217953,4.28176,1861.6,1861.5,2.4403]
[1746119225361,1.07402,1861.5,1861.4,2.21394105]
[1746119225562,4.40112,1861.5,1861.4,1.03751105]
[1746119230262,4.82262966,1861.5,1861.4,1.03751105]
[1746119233159,1.90622,1861.5,1861.4,1.03751105]
[1746119233462,1.07402,1861.5,1861.4,1.88951105]
[1746119235670,1.07402,1861.5,1861.4,7.96359105]
[1746119236063,1.07402,1861.5,1861.4,6.88951105]
[1746119236266,1.07402,1861.5,1861.4,1.88951105]
[1746119236862,4.28182,1861.5,1861.4,1.88951105]
[1746119237268,5.94102,1861.5,1861.4,1.03751105]
[1746119238475,9.48402,1861.5,1861.4,1.03751105]
[1746119246776,4.28182,1861.5,1861.4,1.03751105]
[1746119247777,1.07402,1861.5,1861.4,2.75401105]
[1746119247970,4.28182,1861.5,1861.4,2.75401105]
[1746119251369,6.72452,1861.5,1861.4,2.75401105]
[1746119251782,6.72452,1861.5,1861.4,1.03751105]
[1746119254086,4.28182,1861.5,1861.4,1.03751105]
[1746119254282,4.28182,1861.5,1861.4,1.90401105]
[1746119259788,1.07402,1861.5,1861.4,1.90401105]
[1746119260389,4.28182,1861.5,1861.4,1.90401105]
[1746119260888,1.07402,1861.5,1861.4,1.90401105]
[1746119261289,1.07402,1861.5,1861.4,3.50901105]
[1746119261889,2.68462,1861.9,1861.6,1.07394]
[1746119262088,3.52571,1862.1,1861.7,4.35848]
[1746119262282,3.2078,1862.2,1861.8,1.605]
[1746119262489,1.07372,1862.1,1861.9,1.07376]
[1746119262793,1.07372,1862.1,1862.0,1.605]
[1746119262985,3.2078,1862.2,1862.0,2.67868]
[1746119262986,4.28143,1862.2,1862.0,2.67868]
[1746119263185,1.07363,1862.2,1862.1,0.811]
[1746119263387,1.07363,1862.2,1862.1,3.2602]
[1746119274599,1.07363,1862.2,1862.1,2.4492]
[1746119274801,1.86853,1862.2,1862.1,2.4492]
[1746119277792,1.07391,1861.7,1861.6,5.932]
[1746119277999,1.07396,1861.6,1861.5,1.7023]
[1746119279307,1.07396,1861.6,1861.5,3.2929]
[1746119281509,1.07396,1861.6,1861.5,2.4356]
[1746119281807,1.07402,1861.5,1861.4,1.03751105]
[1746119282002,3.55272,1861.5,1861.4,2.67381105]
[1746119286610,1.85712,1861.5,1861.4,2.67381105]
[1746119287211,1.07402,1861.5,1861.4,2.67381105]
[1746119289215,1.07402,1861.5,1861.4,3.74789105]
[1746119289813,1.07402,1861.5,1861.4,2.67381105]
[1746119291307,1.07394,1861.7,1861.6,1.07393]
[1746119291810,15.07956,1862.0,1861.5,3.3912]
[1746119292012,1.0739,1861.8,1861.7,1.07388]
[1746119292415,1.07391,1861.7,1861.6,2.80932]
[1746119292815,1.07391,1861.7,1861.6,7.80932]
[1746119293819,1.07391,1861.7,1861.6,2.80932]
[1746119294613,1.0739,1861.8,1861.7,1.07387]
[1746119297118,1.07384,1861.9,1861.8,1.07379]
[1746119297312,1.07384,1861.9,1861.8,1.88249]
[1746119299216,1.07377,1862.0,1861.9,1.07373]
[1746119299421,1.07372,1862.1,1862.0,1.07368]
[1746119299718,1.07367,1862.2,1862.1,1.07362]
[1746119300221,1.07377,1862.0,1861.9,1.07372]
[1746119300408,1.07379,1861.9,1861.8,1.8825]
[1746119300815,1.07379,1861.9,1861.8,1.88255]
[1746119301121,1.07379,1861.9,1861.8,0.8087]
[1746119301319,2.80699,1861.9,1861.8,0.8087]
[1746119301814,2.80699,1861.9,1861.8,1.88255]
[1746119302121,2.80699,1861.9,1861.8,0.8087]
[1746119302316,2.80699,1861.9,1861.8,1.88255]
[1746119303722,1.07385,1861.8,1861.7,10.54087]
[1746119303917,1.07385,1861.8,1861.7,9.467]
[1746119304227,1.87585,1861.8,1861.7,5.932]
[1746119304521,1.07396,1861.6,1861.5,1.92662]
[1746119309526,1.07396,1861.6,1861.5,0.8526]
[1746119309826,1.07396,1861.6,1861.5,1.92662]
[1746119310215,1.07396,1861.6,1861.5,3.60782]
[1746119311428,1.07396,1861.6,1861.5,2.5338]
[1746119311623,1.07396,1861.6,1861.5,1.6812]
[1746119312124,3.54736,1861.6,1861.5,1.6812]
[1746119316528,3.54736,1861.6,1861.5,2.75522]
[1746119316925,3.54736,1861.6,1861.5,1.6812]
[1746119317332,3.54736,1861.6,1861.5,2.75522]
[1746119317831,1.07393,1861.7,1861.6,1.07396]
[1746119318027,4.28166,1861.9,1861.6,4.32388]
[1746119318329,4.28166,1861.9,1861.8,1.07385]
[1746119319630,4.28166,1861.9,1861.8,2.71295]
[1746119320532,1.07386,1861.9,1861.8,2.71295]
[1746119321134,1.07378,1862.0,1861.9,1.07373]
[1746119321334,1.07378,1862.0,1861.9,2.80343]
[1746119322839,1.07372,1862.1,1862.0,1.07368]
[1746119323039,1.07372,1862.1,1862.0,3.65138]
[1746119323539,1.07372,1862.1,1862.0,6.85918]
[1746119323739,1.07372,1862.1,1862.0,3.65138]
[1746119324438,4.9211,1862.2,1862.1,1.07368]
[1746119324439,5.99476,1862.2,1862.1,1.07368]
[1746119324636,3.2078,1862.2,1862.1,2.80698]
[1746119324833,1.07354,1862.4,1862.3,1.07356]
[1746119325745,1.07354,1862.4,1862.3,1.90256]
[1746119328441,2.75234,1862.4,1862.3,1.90256]
[1746119330644,2.7523,1862.4,1862.3,1.90256]
[1746119330839,1.89608,1862.5,1862.4,1.0735]
[1746119331040,0.8226,1862.5,1862.4,2.7152]
[1746119331333,1.89604,1862.5,1862.4,2.7152]
[1746119331943,1.07344,1862.5,1862.4,2.7152]
[1746119335039,2.68376,1862.4,1862.1,10.21341]
[1746119335346,1.07362,1862.2,1862.1,11.88871]
[1746119336247,3.47231,1862.3,1862.2,1.07362]
[1746119336438,3.47231,1862.3,1862.2,2.75192]
[1746119336838,3.47231,1862.3,1862.2,1.6783]
[1746119337245,3.47231,1862.3,1862.2,2.75192]
[1746119339642,1.88151,1862.3,1862.2,2.75192]
[1746119339841,1.88151,1862.3,1862.2,3.61762]
[1746119344651,1.07355,1862.4,1862.3,1.0735]
[1746119344851,1.07355,1862.4,1862.3,2.7418]
[1746119345849,1.07349,1862.5,1862.4,1.07344]
[1746119346053,1.07349,1862.5,1862.4,3.58914]
[1746119346547,5.14148,1862.7,1862.6,1.07339]
[1746119347450,1.07339,1862.6,1862.5,2.79989]
[1746119348151,1.92669,1862.6,1862.5,2.79989]
[1746119348448,1.07344,1862.5,1862.4,4.3152]
[1746119348748,1.07368,1862.1,1862.0,3.526]
[1746119348949,1.07379,1861.9,1861.8,1.6317]
[1746119349146,1.07379,1861.9,1861.8,5.1577]
[1746119349348,1.07379,1861.9,1861.8,6.23155]
[1746119350052,1.07379,1861.9,1861.8,7.03725]
[1746119352359,4.28117,1862.0,1861.9,1.07379]
[1746119352549,4.28117,1862.0,1861.9,2.68299]
[1746119355160,4.28117,1862.0,1861.9,1.6092]
[1746119355462,4.28117,1862.0,1861.9,2.68299]
[1746119355759,3.49867,1862.0,1861.9,2.68299]
[1746119357157,1.07372,1862.1,1862.0,1.07369]
[1746119357551,3.2078,1862.5,1862.2,2.68405]
[1746119357762,1.07344,1862.6,1862.5,1.07342]
[1746119361965,1.07339,1862.7,1862.6,1.07336]
[1746119366863,1.93314,1862.9,1862.6,3.521]
[1746119367061,1.07315,1863.1,1863.0,1.0731]
[1746119367256,1.07316,1863.0,1862.9,9.453]
[1746119367656,4.28096,1863.0,1862.9,9.453]
[1746119367965,4.28096,1863.0,1862.9,5.932]
[1746119368366,1.07316,1863.0,1862.9,5.932]
[1746119368565,4.28096,1863.0,1862.9,5.932]
[1746119369365,1.07316,1863.0,1862.9,5.932]
[1746119369666,4.28096,1863.0,1862.9,5.932]
[1746119371768,1.07327,1862.8,1862.7,2.69798]
[1746119372469,3.47416,1862.9,1862.8,1.07327]
[1746119372670,3.47416,1862.9,1862.8,2.69797]
[1746119372968,6.68196,1862.9,1862.8,1.6247]
[1746119373267,6.68196,1862.9,1862.8,2.69797]
[1746119373468,3.47416,1862.9,1862.8,2.69797]
[1746119374168,3.47416,1862.9,1862.8,1.6247]
[1746119374670,6.68196,1862.9,1862.8,1.6247]
[1746119375671,7.51486,1862.9,1862.8,1.6247]
[1746119376071,7.51486,1862.9,1862.8,2.69797]
[1746119376370,5.11396,1862.9,1862.8,2.69797]
[1746119377465,0.8329,1862.9,1862.6,9.453]
[1746119377769,1.07333,1862.7,1862.6,5.1089]